[Event "Titled Tuesday Blitz May 10 Late 2022"]
[White "Svane, Rasmus"]
[Black "Daggupati, Balaji"]
[WhiteFideId "4657101"]
[BlackFideId "2090759"]
[WhiteElo "2674"]
[BlackElo "2643"]
[Result "1/2-1/2"]
[Round "07"]
[TimeControl "180+1"]
[Date "2022.05.10"]
[WhiteClock "0:00:04"]
[BlackClock "0:00:12"]

1. Nf3 {[%clk 0:02:59]}  d5 {[%clk 0:03:00]} 2. g3 {[%clk 0:02:58]}  Bg4 {[%clk 0:02:58]} 3. Bg2 {[%clk 0:02:57]}  c6 {[%clk 0:02:58]} 4. O-O {[%clk 0:02:56]}  Nd7 {[%clk 0:02:59]} 5. h3 {[%clk 0:02:57]}  Bxf3 {[%clk 0:02:58]} 6. Bxf3 {[%clk 0:02:58]}  e5 {[%clk 0:02:57]} 7. d3 {[%clk 0:02:58]}  Ngf6 {[%clk 0:02:58]} 8. e4 {[%clk 0:02:58]}  dxe4 {[%clk 0:02:56]} 9. dxe4 {[%clk 0:02:58]}  Bc5 {[%clk 0:02:55]} 10. Nd2 {[%clk 0:02:57]}  O-O {[%clk 0:02:56]} 11. Qe2 {[%clk 0:02:57]}  Re8 {[%clk 0:02:54]} 12. a4 {[%clk 0:02:58]}  h6 {[%clk 0:02:53]} 13. a5 {[%clk 0:02:58]}  Nf8 {[%clk 0:02:51]} 14. Nb3 {[%clk 0:02:54]}  Be7 {[%clk 0:02:43]} 15. Rd1 {[%clk 0:02:53]}  Qc7 {[%clk 0:02:41]} 16. Be3 {[%clk 0:02:54]}  Ne6 {[%clk 0:02:39]} 17. h4 {[%clk 0:02:54]}  c5 {[%clk 0:02:09]} 18. Qc4 {[%clk 0:02:41]}  Qc6 {[%clk 0:01:59]} 19. c3 {[%clk 0:02:36]}  b5 {[%clk 0:01:39]} 20. axb6 {[%clk 0:02:25]}  axb6 {[%clk 0:01:40]} 21. Rxa8 {[%clk 0:02:23]}  Rxa8 {[%clk 0:01:41]} 22. Nd2 {[%clk 0:02:08]}  b5 {[%clk 0:01:37]} 23. Qe2 {[%clk 0:02:08]}  c4 {[%clk 0:01:38]} 24. Nf1 {[%clk 0:02:05]}  Bc5 {[%clk 0:01:29]} 25. Rd5 {[%clk 0:02:03]}  Nd7 {[%clk 0:01:18]} 26. Bg4 {[%clk 0:01:56]}  Bxe3 {[%clk 0:01:11]} 27. Nxe3 {[%clk 0:01:57]}  Ndc5 {[%clk 0:01:10]} 28. Bxe6 {[%clk 0:01:50]}  fxe6 {[%clk 0:01:04]} 29. Rxe5 {[%clk 0:01:43]}  Nd3 {[%clk 0:01:03]} 30. Rh5 {[%clk 0:01:41]}  Qxe4 {[%clk 0:01:03]} 31. Qd1 {[%clk 0:01:00]}  Nxb2 {[%clk 0:00:53]} 32. Qf1 {[%clk 0:01:00]}  b4 {[%clk 0:00:49]} 33. cxb4 {[%clk 0:00:56]}  c3 {[%clk 0:00:49]} 34. Rc5 {[%clk 0:00:55]}  Qxb4 {[%clk 0:00:49]} 35. Rc7 {[%clk 0:00:54]}  Na4 {[%clk 0:00:34]} 36. Qd3 {[%clk 0:00:48]}  Qb6 {[%clk 0:00:34]} 37. Qd7 {[%clk 0:00:46]}  Qb1+ {[%clk 0:00:33]} 38. Kh2 {[%clk 0:00:42]}  Qg6 {[%clk 0:00:34]} 39. Qc6 {[%clk 0:00:38]}  Rf8 {[%clk 0:00:28]} 40. Qxa4 {[%clk 0:00:36]}  Rxf2+ {[%clk 0:00:28]} 41. Ng2 {[%clk 0:00:37]}  c2 {[%clk 0:00:25]} 42. Qa8+ {[%clk 0:00:27]}  Rf8 {[%clk 0:00:21]} 43. Qc6 {[%clk 0:00:26]}  Rf2 {[%clk 0:00:20]} 44. Rc8+ {[%clk 0:00:26]}  Kh7 {[%clk 0:00:20]} 45. Qa8 {[%clk 0:00:26]}  Qf5 {[%clk 0:00:18]} 46. Rh8+ {[%clk 0:00:25]}  Kg6 {[%clk 0:00:18]} 47. Qe8+ {[%clk 0:00:23]}  Qf7 {[%clk 0:00:18]} 48. Qxf7+ {[%clk 0:00:20]}  Kxf7 {[%clk 0:00:17]} 49. Rc8 {[%clk 0:00:20]}  Ke7 {[%clk 0:00:16]} 50. Kg1 {[%clk 0:00:19]}  Kd7 {[%clk 0:00:16]} 51. Rc4 {[%clk 0:00:16]}  Rf3 {[%clk 0:00:15]} 52. g4 {[%clk 0:00:16]}  Rg3 {[%clk 0:00:14]} 53. Rxc2 {[%clk 0:00:10]}  Rxg4 {[%clk 0:00:14]} 54. Kf2 {[%clk 0:00:11]}  Ke7 {[%clk 0:00:10]} 55. Rc7+ {[%clk 0:00:10]}  Kf6 {[%clk 0:00:09]} 56. Kf3 {[%clk 0:00:11]}  Ra4 {[%clk 0:00:09]} 57. Nf4 {[%clk 0:00:08]}  Ra3+ {[%clk 0:00:08]} 58. Kg4 {[%clk 0:00:08]}  Ra4 {[%clk 0:00:09]} 59. Kg3 {[%clk 0:00:08]}  g5 {[%clk 0:00:08]} 60. hxg5+ {[%clk 0:00:06]}  hxg5 {[%clk 0:00:09]} 61. Ng2 {[%clk 0:00:07]}  Ra3+ {[%clk 0:00:08]} 62. Kf2 {[%clk 0:00:07]}  Ra4 {[%clk 0:00:09]} 63. Kf3 {[%clk 0:00:07]}  Ra3+ {[%clk 0:00:09]} 64. Ne3 {[%clk 0:00:07]}  Ra4 {[%clk 0:00:10]} 65. Rb7 {[%clk 0:00:07]}  Rf4+ {[%clk 0:00:10]} 66. Kg3 {[%clk 0:00:07]}  Ra4 {[%clk 0:00:11]} 67. Ng4+ {[%clk 0:00:07]}  Kf5 {[%clk 0:00:10]} 68. Rb5+ {[%clk 0:00:07]}  Kg6 {[%clk 0:00:10]} 69. Ne5+ {[%clk 0:00:07]}  Kf6 {[%clk 0:00:10]} 70. Nf3 {[%clk 0:00:07]}  Ra3 {[%clk 0:00:10]} 71. Kg2 {[%clk 0:00:06]}  Ra2+ {[%clk 0:00:09]} 72. Kf1 {[%clk 0:00:06]}  Ra3 {[%clk 0:00:10]} 73. Nxg5 {[%clk 0:00:06]}  Ra1+ {[%clk 0:00:10]} 74. Kf2 {[%clk 0:00:06]}  Ra2+ {[%clk 0:00:11]} 75. Kg3 {[%clk 0:00:07]}  Ra3+ {[%clk 0:00:12]} 76. Nf3 {[%clk 0:00:07]}  e5 {[%clk 0:00:12]} 77. Kf2 {[%clk 0:00:07]}  e4 {[%clk 0:00:12]} 78. Nd4 {[%clk 0:00:07]}  Rd3 {[%clk 0:00:12]} 79. Rf5+ {[%clk 0:00:06]}  Kg6 {[%clk 0:00:12]} 80. Rd5 {[%clk 0:00:05]}  Kf6 {[%clk 0:00:11]} 81. Ke2 {[%clk 0:00:06]}  Kf7 {[%clk 0:00:10]} 82. Rd6 {[%clk 0:00:05]}  Ke8 {[%clk 0:00:07]} 83. Re6+ {[%clk 0:00:04]}  Kf7 {[%clk 0:00:07]} 84. Rxe4 {[%clk 0:00:05]}  Ra3 {[%clk 0:00:07]} 85. Nf5 {[%clk 0:00:05]}  Kf6 {[%clk 0:00:08]} 86. Ne3 {[%clk 0:00:05]}  Ra2+ {[%clk 0:00:08]} 87. Kf3 {[%clk 0:00:06]}  Ra3 {[%clk 0:00:09]} 88. Kf4 {[%clk 0:00:06]}  Ra1 {[%clk 0:00:09]} 89. Ng4+ {[%clk 0:00:06]}  Kf7 {[%clk 0:00:09]} 90. Ne5+ {[%clk 0:00:05]}  Ke6 {[%clk 0:00:10]} 91. Nf3+ {[%clk 0:00:05]}  Kd6 {[%clk 0:00:10]} 92. Rd4+ {[%clk 0:00:05]}  Ke6 {[%clk 0:00:09]} 93. Ng5+ {[%clk 0:00:05]}  Kf6 {[%clk 0:00:09]} 94. Rd6+ {[%clk 0:00:06]}  Ke7 {[%clk 0:00:10]} 95. Rb6 {[%clk 0:00:06]}  Rf1+ {[%clk 0:00:10]} 96. Ke5 {[%clk 0:00:06]}  Re1+ {[%clk 0:00:11]} 97. Ne4 {[%clk 0:00:07]}  Kd7 {[%clk 0:00:12]} 98. Rg6 {[%clk 0:00:06]}  Kc7 {[%clk 0:00:11]} 99. Kd5 {[%clk 0:00:06]}  Rd1+ {[%clk 0:00:12]} 100. Kc4 {[%clk 0:00:06]}  Rc1+ {[%clk 0:00:12]} 101. Nc3 {[%clk 0:00:06]}  Kd7 {[%clk 0:00:12]} 102. Kd4 {[%clk 0:00:06]}  Ke7 {[%clk 0:00:12]} 103. Ke5 {[%clk 0:00:04]}  Rxc3 {[%clk 0:00:12]} 104. Rg7+ {[%clk 0:00:04]}  Kd8 {[%clk 0:00:12]} 105. Rg4 {[%clk 0:00:04]}  Kc7 {[%clk 0:00:12]} 106. Rd4 {[%clk 0:00:04]} 1/2-1/2


[Site "https://www.chess.com"]

[Event "Titled Tuesday Blitz May 10 Late 2022"]
[White "Tanenbaum, Zachary"]
[Black "Dubov, Daniil"]
[WhiteFideId "2060850"]
[BlackFideId "24126055"]
[WhiteElo "2168"]
[BlackElo "2791"]
[Result "0-1"]
[Round "07"]
[TimeControl "180+1"]
[Date "2022.05.10"]
[WhiteClock "0:00:03"]
[BlackClock "0:00:42"]

1. e4 {[%clk 0:02:59]}  c5 {[%clk 0:02:59]} 2. Nf3 {[%clk 0:02:59]}  e6 {[%clk 0:03:00]} 3. d4 {[%clk 0:03:00]}  cxd4 {[%clk 0:03:01]} 4. Nxd4 {[%clk 0:03:00]}  a6 {[%clk 0:03:01]} 5. Bd3 {[%clk 0:03:00]}  Bc5 {[%clk 0:03:00]} 6. Nb3 {[%clk 0:03:00]}  Ba7 {[%clk 0:03:01]} 7. O-O {[%clk 0:03:00]}  d6 {[%clk 0:03:00]} 8. Qg4 {[%clk 0:02:59]}  Nf6 {[%clk 0:02:58]} 9. Qxg7 {[%clk 0:03:00]}  Rg8 {[%clk 0:02:59]} 10. Qh6 {[%clk 0:03:00]}  Nbd7 {[%clk 0:02:58]} 11. Qh3 {[%clk 0:02:31]}  Ne5 {[%clk 0:02:55]} 12. Be3 {[%clk 0:02:29]}  Bxe3 {[%clk 0:02:49]} 13. Qxe3 {[%clk 0:02:30]}  b5 {[%clk 0:02:48]} 14. N1d2 {[%clk 0:02:20]}  Bb7 {[%clk 0:02:47]} 15. h3 {[%clk 0:02:19]}  d5 {[%clk 0:02:46]} 16. f4 {[%clk 0:02:14]}  Nc4 {[%clk 0:02:36]} 17. Bxc4 {[%clk 0:01:57]}  bxc4 {[%clk 0:02:37]} 18. Nd4 {[%clk 0:01:55]}  dxe4 {[%clk 0:02:36]} 19. Nxc4 {[%clk 0:01:42]}  Qc7 {[%clk 0:02:32]} 20. b3 {[%clk 0:01:25]}  Nd5 {[%clk 0:02:32]} 21. Qxe4 {[%clk 0:01:24]}  O-O-O {[%clk 0:02:31]} 22. Qe5 {[%clk 0:01:19]}  Qc5 {[%clk 0:02:25]} 23. Rf2 {[%clk 0:01:14]}  f6 {[%clk 0:02:14]} 24. Qxe6+ {[%clk 0:01:09]}  Kb8 {[%clk 0:02:14]} 25. Rd1 {[%clk 0:00:36]}  Nc3 {[%clk 0:01:12]} 26. Rd3 {[%clk 0:00:32]}  Nb5 {[%clk 0:01:12]} 27. c3 {[%clk 0:00:21]}  Nxc3 {[%clk 0:01:12]} 28. Qb6 {[%clk 0:00:19]}  Qxb6 {[%clk 0:00:51]} 29. Nxb6 {[%clk 0:00:20]}  Nb5 {[%clk 0:00:51]} 30. Rfd2 {[%clk 0:00:16]}  Be4 {[%clk 0:00:52]} 31. Nc6+ {[%clk 0:00:14]}  Kc7 {[%clk 0:00:48]} 32. Rxd8 {[%clk 0:00:11]}  Rg6 {[%clk 0:00:48]} 33. Na8+ {[%clk 0:00:06]}  Kxc6 {[%clk 0:00:46]} 34. R2d6+ {[%clk 0:00:04]}  Nxd6 {[%clk 0:00:45]} 35. Rb8 {[%clk 0:00:02]}  Rxg2+ {[%clk 0:00:44]} 36. Kf1 {[%clk 0:00:03]}  Rxa2 {[%clk 0:00:45]} 37. Rb6+ {[%clk 0:00:03]}  Kd7 {[%clk 0:00:44]} 38. b4 {[%clk 0:00:02]}  Bxa8 {[%clk 0:00:43]} 39. f5 {[%clk 0:00:03]}  Kc7 {[%clk 0:00:42]} 0-1


[Site "https://www.chess.com"]

[Event "Titled Tuesday Blitz May 10 Late 2022"]
[White "Wieczorek, Oskar"]
[Black "Derraugh, Geordie"]
[WhiteFideId "1133950"]
[BlackFideId "2603950"]
[WhiteElo "2330"]
[BlackElo "2116"]
[Result "0-1"]
[Round "07"]
[TimeControl "180+1"]
[Date "2022.05.11"]
[WhiteClock "0:00:36"]
[BlackClock "0:00:18"]

1. e4 {[%clk 0:03:00]}  c5 {[%clk 0:02:59]} 2. Nf3 {[%clk 0:03:01]}  d6 {[%clk 0:03:00]} 3. c3 {[%clk 0:03:00]}  Nf6 {[%clk 0:02:59]} 4. h3 {[%clk 0:03:01]}  Nc6 {[%clk 0:02:58]} 5. Bd3 {[%clk 0:02:59]}  g6 {[%clk 0:02:56]} 6. Bc2 {[%clk 0:02:59]}  Bg7 {[%clk 0:02:55]} 7. d4 {[%clk 0:02:56]}  cxd4 {[%clk 0:02:55]} 8. cxd4 {[%clk 0:02:57]}  O-O {[%clk 0:02:54]} 9. Nc3 {[%clk 0:02:57]}  Nb4 {[%clk 0:02:46]} 10. Bb1 {[%clk 0:02:56]}  b6 {[%clk 0:02:45]} 11. a3 {[%clk 0:02:56]}  Nc6 {[%clk 0:02:44]} 12. O-O {[%clk 0:02:53]}  Bb7 {[%clk 0:02:43]} 13. Bd3 {[%clk 0:02:45]}  Rc8 {[%clk 0:02:42]} 14. Be3 {[%clk 0:02:45]}  Na5 {[%clk 0:02:41]} 15. Qe2 {[%clk 0:02:40]}  d5 {[%clk 0:02:41]} 16. e5 {[%clk 0:02:32]}  Ne4 {[%clk 0:02:41]} 17. Bxe4 {[%clk 0:02:32]}  dxe4 {[%clk 0:02:42]} 18. Ng5 {[%clk 0:02:33]}  Nc4 {[%clk 0:02:27]} 19. Rac1 {[%clk 0:02:20]}  f5 {[%clk 0:02:18]} 20. exf6 {[%clk 0:02:13]}  Rxf6 {[%clk 0:02:17]} 21. Ncxe4 {[%clk 0:02:13]}  Rfc6 {[%clk 0:02:10]} 22. Qg4 {[%clk 0:01:35]}  Nxe3 {[%clk 0:01:58]} 23. fxe3 {[%clk 0:01:35]}  h5 {[%clk 0:01:45]} 24. Qf3 {[%clk 0:00:49]}  Rxc1 {[%clk 0:01:41]} 25. Qf7+ {[%clk 0:00:48]}  Kh8 {[%clk 0:01:41]} 26. Qxg6 {[%clk 0:00:44]}  Rxf1+ {[%clk 0:01:40]} 27. Kxf1 {[%clk 0:00:44]}  Qf8+ {[%clk 0:01:09]} 28. Nf2 {[%clk 0:00:44]}  Rc1+ {[%clk 0:00:38]} 29. Ke2 {[%clk 0:00:44]}  Ba6+ {[%clk 0:00:39]} 30. Kd2 {[%clk 0:00:35]}  Qxf2+ {[%clk 0:00:39]} 31. Kxc1 {[%clk 0:00:36]}  Qxe3+ {[%clk 0:00:37]} 32. Kd1 {[%clk 0:00:36]}  Qd3+ {[%clk 0:00:18]} 0-1


[Site "https://www.chess.com"]

[Event "Titled Tuesday Blitz May 10 Late 2022"]
[White "Xiong, Jeffery"]
[Black "Kazakouski, Valery"]
[WhiteFideId "2047640"]
[BlackFideId "13507443"]
[WhiteElo "2727"]
[BlackElo "2524"]
[Result "0-1"]
[Round "07"]
[TimeControl "180+1"]
[Date "2022.05.10"]
[WhiteClock "0:00:02"]
[BlackClock "0:00:10"]

1. d4 {[%clk 0:03:00]}  Nf6 {[%clk 0:02:56]} 2. c4 {[%clk 0:03:01]}  e6 {[%clk 0:02:56]} 3. Nc3 {[%clk 0:03:01]}  Bb4 {[%clk 0:02:56]} 4. Nf3 {[%clk 0:03:02]}  d6 {[%clk 0:02:51]} 5. Qc2 {[%clk 0:03:00]}  Nc6 {[%clk 0:02:51]} 6. a3 {[%clk 0:03:00]}  Bxc3+ {[%clk 0:02:51]} 7. Qxc3 {[%clk 0:03:01]}  O-O {[%clk 0:02:52]} 8. b4 {[%clk 0:03:02]}  e5 {[%clk 0:02:52]} 9. dxe5 {[%clk 0:03:00]}  Nxe5 {[%clk 0:02:52]} 10. Bb2 {[%clk 0:02:59]}  Re8 {[%clk 0:02:50]} 11. Nxe5 {[%clk 0:02:33]}  dxe5 {[%clk 0:02:49]} 12. Rd1 {[%clk 0:02:33]}  Qe7 {[%clk 0:02:49]} 13. g3 {[%clk 0:02:32]}  a5 {[%clk 0:02:45]} 14. Bg2 {[%clk 0:02:30]}  axb4 {[%clk 0:02:44]} 15. axb4 {[%clk 0:02:31]}  Ra4 {[%clk 0:02:43]} 16. c5 {[%clk 0:02:29]}  h5 {[%clk 0:02:36]} 17. h3 {[%clk 0:02:19]}  c6 {[%clk 0:02:05]} 18. O-O {[%clk 0:02:14]}  Bf5 {[%clk 0:02:05]} 19. f4 {[%clk 0:02:00]}  Ne4 {[%clk 0:01:47]} 20. Qe3 {[%clk 0:01:58]}  exf4 {[%clk 0:01:39]} 21. Rxf4 {[%clk 0:01:55]}  Bg6 {[%clk 0:01:36]} 22. Rd4 {[%clk 0:01:41]}  Ng5 {[%clk 0:01:26]} 23. Qb3 {[%clk 0:01:39]}  Raa8 {[%clk 0:01:19]} 24. Rd6 {[%clk 0:01:40]}  Qe3+ {[%clk 0:01:14]} 25. Qxe3 {[%clk 0:01:39]}  Rxe3 {[%clk 0:01:15]} 26. b5 {[%clk 0:01:37]}  Rxe2 {[%clk 0:01:07]} 27. bxc6 {[%clk 0:01:37]}  bxc6 {[%clk 0:00:54]} 28. Bc3 {[%clk 0:01:15]}  Raa2 {[%clk 0:00:50]} 29. Bf1 {[%clk 0:01:13]}  Rec2 {[%clk 0:00:46]} 30. h4 {[%clk 0:00:32]}  Rxc3 {[%clk 0:00:38]} 31. hxg5 {[%clk 0:00:33]}  Rxg3+ {[%clk 0:00:38]} 32. Kh1 {[%clk 0:00:34]}  Rxg5 {[%clk 0:00:38]} 33. Rxc6 {[%clk 0:00:34]}  Rc2 {[%clk 0:00:35]} 34. Rc8+ {[%clk 0:00:33]}  Kh7 {[%clk 0:00:35]} 35. c6 {[%clk 0:00:34]}  Rc1 {[%clk 0:00:30]} 36. Kh2 {[%clk 0:00:33]}  Rc2+ {[%clk 0:00:27]} 37. Kh1 {[%clk 0:00:34]}  Rc1 {[%clk 0:00:18]} 38. Kh2 {[%clk 0:00:34]}  Rgc5 {[%clk 0:00:18]} 39. Bg2 {[%clk 0:00:34]}  Kh6 {[%clk 0:00:17]} 40. Rf2 {[%clk 0:00:21]}  Kg5 {[%clk 0:00:16]} 41. Rd2 {[%clk 0:00:11]}  h4 {[%clk 0:00:16]} 42. Rh8 {[%clk 0:00:09]}  R5c2 {[%clk 0:00:15]} 43. Rxc2 {[%clk 0:00:08]}  Rxc2 {[%clk 0:00:15]} 44. Kg1 {[%clk 0:00:09]}  Kg4 {[%clk 0:00:13]} 45. Rd8 {[%clk 0:00:03]}  Kg3 {[%clk 0:00:13]} 46. Bf1 {[%clk 0:00:01]}  Rxc6 {[%clk 0:00:12]} 47. Rd2 {[%clk 0:00:02]}  h3 {[%clk 0:00:11]} 48. Rh2 {[%clk 0:00:01]}  Bf5 {[%clk 0:00:11]} 49. Bxh3 {[%clk 0:00:01]}  Bxh3 {[%clk 0:00:10]} 50. Rg2+ {[%clk 0:00:02]}  Kf4 {[%clk 0:00:10]} 51. Rxg7 {[%clk 0:00:03]}  Be6 {[%clk 0:00:10]} 52. Kf2 {[%clk 0:00:02]}  Rc2+ {[%clk 0:00:10]} 53. Ke1 {[%clk 0:00:03]}  f5 {[%clk 0:00:10]} 54. Rg6 {[%clk 0:00:03]}  Bd5 {[%clk 0:00:10]} 55. Rh6 {[%clk 0:00:01]}  Be4 {[%clk 0:00:09]} 56. Kd1 {[%clk 0:00:01]}  Ra2 {[%clk 0:00:09]} 57. Kc1 {[%clk 0:00:01]}  Ke3 {[%clk 0:00:08]} 58. Rh3+ {[%clk 0:00:02]}  Bf3 {[%clk 0:00:09]} 59. Kb1 {[%clk 0:00:02]}  Rg2 {[%clk 0:00:09]} 60. Kc1 {[%clk 0:00:02]}  f4 {[%clk 0:00:10]} 0-1


[Site "https://www.chess.com"]

[Event "Titled Tuesday Blitz May 10 Late 2022"]
[White "Akrakan"]
[Black "Curtis, John"]
[BlackFideId "3200256"]
[WhiteElo "2122"]
[BlackElo "2203"]
[Result "0-1"]
[Round "08"]
[TimeControl "180+1"]
[Date "2022.05.11"]
[WhiteClock "0:00:52"]
[BlackClock "0:00:58"]

1. e4 {[%clk 0:03:00]}  c5 {[%clk 0:02:59]} 2. Nf3 {[%clk 0:03:01]}  e6 {[%clk 0:02:59]} 3. c3 {[%clk 0:03:01]}  d5 {[%clk 0:02:59]} 4. e5 {[%clk 0:03:01]}  Bd7 {[%clk 0:02:57]} 5. d4 {[%clk 0:03:01]}  Qb6 {[%clk 0:02:58]} 6. a3 {[%clk 0:03:00]}  Bb5 {[%clk 0:02:58]} 7. Be2 {[%clk 0:02:52]}  Bxe2 {[%clk 0:02:57]} 8. Qxe2 {[%clk 0:02:52]}  cxd4 {[%clk 0:02:58]} 9. cxd4 {[%clk 0:02:52]}  Nc6 {[%clk 0:02:57]} 10. Be3 {[%clk 0:02:52]}  Nge7 {[%clk 0:02:56]} 11. O-O {[%clk 0:02:50]}  Nf5 {[%clk 0:02:56]} 12. Rd1 {[%clk 0:02:50]}  Nxe3 {[%clk 0:02:55]} 13. fxe3 {[%clk 0:02:51]}  Be7 {[%clk 0:02:54]} 14. Nc3 {[%clk 0:02:49]}  O-O {[%clk 0:02:53]} 15. Rac1 {[%clk 0:02:50]}  f6 {[%clk 0:02:54]} 16. exf6 {[%clk 0:02:49]}  Bxf6 {[%clk 0:02:54]} 17. Na4 {[%clk 0:02:48]}  Qc7 {[%clk 0:02:51]} 18. Nc5 {[%clk 0:02:49]}  Qe7 {[%clk 0:02:48]} 19. Qb5 {[%clk 0:02:35]}  Nd8 {[%clk 0:02:44]} 20. Nd3 {[%clk 0:02:28]}  Nc6 {[%clk 0:02:38]} 21. Qc5 {[%clk 0:02:19]}  Qf7 {[%clk 0:02:34]} 22. b4 {[%clk 0:02:11]}  a6 {[%clk 0:02:31]} 23. a4 {[%clk 0:02:05]}  Be7 {[%clk 0:02:31]} 24. Qc3 {[%clk 0:02:02]}  Bd6 {[%clk 0:02:27]} 25. b5 {[%clk 0:02:00]}  axb5 {[%clk 0:02:26]} 26. axb5 {[%clk 0:02:01]}  Na5 {[%clk 0:02:26]} 27. Nde5 {[%clk 0:02:00]}  Qf5 {[%clk 0:02:20]} 28. Rf1 {[%clk 0:01:53]}  b6 {[%clk 0:01:59]} 29. Qd2 {[%clk 0:01:27]}  Nb3 {[%clk 0:01:55]} 30. Qe2 {[%clk 0:01:26]}  Nxc1 {[%clk 0:01:55]} 31. Rxc1 {[%clk 0:01:27]}  Bxe5 {[%clk 0:01:55]} 32. Nxe5 {[%clk 0:01:26]}  Ra3 {[%clk 0:01:46]} 33. h3 {[%clk 0:01:22]}  Qe4 {[%clk 0:01:46]} 34. Re1 {[%clk 0:01:21]}  Rb3 {[%clk 0:01:41]} 35. Kh2 {[%clk 0:01:19]}  g6 {[%clk 0:01:24]} 36. Kg1 {[%clk 0:01:14]}  Kg7 {[%clk 0:01:24]} 37. Kh2 {[%clk 0:01:14]}  Rf5 {[%clk 0:01:24]} 38. Rc1 {[%clk 0:01:09]}  Qxe3 {[%clk 0:01:11]} 39. Rc7+ {[%clk 0:01:08]}  Kg8 {[%clk 0:01:10]} 40. Qxe3 {[%clk 0:01:06]}  Rxe3 {[%clk 0:01:10]} 41. Rc6 {[%clk 0:01:04]}  Rexe5 {[%clk 0:01:07]} 42. dxe5 {[%clk 0:01:04]}  Rxe5 {[%clk 0:01:08]} 43. Rxb6 {[%clk 0:01:04]}  d4 {[%clk 0:01:08]} 44. Rd6 {[%clk 0:01:04]}  Rxb5 {[%clk 0:01:08]} 45. Rxd4 {[%clk 0:01:05]}  Rb7 {[%clk 0:01:05]} 46. Kg3 {[%clk 0:01:04]}  e5 {[%clk 0:01:05]} 47. Re4 {[%clk 0:01:02]}  Re7 {[%clk 0:01:05]} 48. Kg4 {[%clk 0:01:02]}  Kf7 {[%clk 0:01:06]} 49. Kg5 {[%clk 0:01:02]}  Ke6 {[%clk 0:01:06]} 50. Kg4 {[%clk 0:00:59]}  Kd5 {[%clk 0:01:06]} 51. Kf3 {[%clk 0:00:59]}  Ra7 {[%clk 0:01:05]} 52. h4 {[%clk 0:00:54]}  Ra3+ {[%clk 0:01:05]} 53. Re3 {[%clk 0:00:54]}  e4+ {[%clk 0:01:03]} 54. Kf4 {[%clk 0:00:52]}  Rxe3 {[%clk 0:01:02]} 55. Kxe3 {[%clk 0:00:52]}  h5 {[%clk 0:00:59]} 56. g3 {[%clk 0:00:52]}  Ke5 {[%clk 0:00:58]} 0-1


[Site "https://www.chess.com"]

[Event "Titled Tuesday Blitz May 10 Late 2022"]
[White "Barria Zuniga, Daniel"]
[Black "Rorrer, Grayson"]
[WhiteFideId "3400816"]
[BlackFideId "30944996"]
[WhiteElo "2414"]
[BlackElo "2122"]
[Result "1/2-1/2"]
[Round "08"]
[TimeControl "180+1"]
[Date "2022.05.10"]
[WhiteClock "0:00:12"]
[BlackClock "0:00:01"]

1. c4 {[%clk 0:03:00]}  e5 {[%clk 0:02:59]} 2. g3 {[%clk 0:03:01]}  c6 {[%clk 0:02:59]} 3. Bg2 {[%clk 0:02:55]}  d5 {[%clk 0:02:59]} 4. cxd5 {[%clk 0:02:55]}  cxd5 {[%clk 0:03:00]} 5. d4 {[%clk 0:02:55]}  e4 {[%clk 0:03:01]} 6. Nh3 {[%clk 0:02:55]}  Nc6 {[%clk 0:03:00]} 7. O-O {[%clk 0:02:55]}  h6 {[%clk 0:03:00]} 8. Nc3 {[%clk 0:02:54]}  Nf6 {[%clk 0:03:00]} 9. Bf4 {[%clk 0:02:53]}  Bb4 {[%clk 0:02:59]} 10. Rc1 {[%clk 0:02:48]}  O-O {[%clk 0:02:59]} 11. a3 {[%clk 0:02:48]}  Bxc3 {[%clk 0:02:59]} 12. Rxc3 {[%clk 0:02:48]}  Bf5 {[%clk 0:02:55]} 13. Be5 {[%clk 0:02:47]}  Nd7 {[%clk 0:02:34]} 14. Nf4 {[%clk 0:02:41]}  Ndxe5 {[%clk 0:02:34]} 15. dxe5 {[%clk 0:02:41]}  d4 {[%clk 0:02:35]} 16. Rc5 {[%clk 0:02:39]}  Qe7 {[%clk 0:02:20]} 17. b4 {[%clk 0:02:29]}  Rad8 {[%clk 0:02:15]} 18. Qb1 {[%clk 0:02:21]}  d3 {[%clk 0:01:57]} 19. exd3 {[%clk 0:02:19]}  exd3 {[%clk 0:01:58]} 20. Nd5 {[%clk 0:01:57]}  Qe6 {[%clk 0:01:43]} 21. f4 {[%clk 0:01:52]}  Nd4 {[%clk 0:01:30]} 22. Ne3 {[%clk 0:01:44]}  d2 {[%clk 0:00:45]} 23. Nxf5 {[%clk 0:01:35]}  Nxf5 {[%clk 0:00:45]} 24. Bh3 {[%clk 0:01:21]}  Qd7 {[%clk 0:00:44]} 25. Bxf5 {[%clk 0:01:07]}  Qd4+ {[%clk 0:00:44]} 26. Kg2 {[%clk 0:01:03]}  d1=Q {[%clk 0:00:44]} 27. Rxd1 {[%clk 0:01:02]}  Qxd1 {[%clk 0:00:45]} 28. Qxd1 {[%clk 0:01:03]}  Rxd1 {[%clk 0:00:45]} 29. Rc7 {[%clk 0:01:02]}  Ra1 {[%clk 0:00:45]} 30. Rxb7 {[%clk 0:00:58]}  Rxa3 {[%clk 0:00:45]} 31. e6 {[%clk 0:00:54]}  fxe6 {[%clk 0:00:44]} 32. Bxe6+ {[%clk 0:00:55]}  Kh8 {[%clk 0:00:44]} 33. f5 {[%clk 0:00:55]}  Ra1 {[%clk 0:00:36]} 34. h4 {[%clk 0:00:51]}  Rb1 {[%clk 0:00:36]} 35. Kf3 {[%clk 0:00:45]}  a5 {[%clk 0:00:34]} 36. b5 {[%clk 0:00:44]}  a4 {[%clk 0:00:32]} 37. Ra7 {[%clk 0:00:40]}  Rxb5 {[%clk 0:00:25]} 38. Rxa4 {[%clk 0:00:39]}  Re5 {[%clk 0:00:26]} 39. Kg4 {[%clk 0:00:34]}  g6 {[%clk 0:00:23]} 40. Rf4 {[%clk 0:00:32]}  gxf5+ {[%clk 0:00:22]} 41. Bxf5 {[%clk 0:00:25]}  Rg8+ {[%clk 0:00:19]} 42. Kh5 {[%clk 0:00:24]}  Rxg3 {[%clk 0:00:17]} 43. Kxh6 {[%clk 0:00:22]}  Rd5 {[%clk 0:00:13]} 44. Bg6 {[%clk 0:00:21]}  Rd8 {[%clk 0:00:13]} 45. Rf7 {[%clk 0:00:20]}  Kg8 {[%clk 0:00:13]} 46. h5 {[%clk 0:00:20]}  Rg1 {[%clk 0:00:07]} 47. Rg7+ {[%clk 0:00:20]}  Kf8 {[%clk 0:00:07]} 48. Rh7 {[%clk 0:00:20]}  Rd2 {[%clk 0:00:04]} 49. Rf7+ {[%clk 0:00:18]}  Kg8 {[%clk 0:00:05]} 50. Re7 {[%clk 0:00:18]}  Rd8 {[%clk 0:00:04]} 51. Bf5 {[%clk 0:00:18]}  Rd6+ {[%clk 0:00:02]} 52. Bg6 {[%clk 0:00:17]}  Rd8 {[%clk 0:00:02]} 53. Rg7+ {[%clk 0:00:14]}  Kf8 {[%clk 0:00:02]} 54. Rh7 {[%clk 0:00:14]}  Rd6 {[%clk 0:00:01]} 55. Rh8+ {[%clk 0:00:13]}  Ke7 {[%clk 0:00:02]} 56. Kg7 {[%clk 0:00:13]}  Re6 {[%clk 0:00:01]} 57. Re8+ {[%clk 0:00:12]}  Kd7 {[%clk 0:00:02]} 58. Rxe6 {[%clk 0:00:11]}  Kxe6 {[%clk 0:00:02]} 59. h6 {[%clk 0:00:12]}  Rh1 {[%clk 0:00:03]} 60. h7 {[%clk 0:00:12]}  Rxh7+ {[%clk 0:00:01]} 61. Bxh7 {[%clk 0:00:12]} 1/2-1/2


[Site "https://www.chess.com"]